bitfinex/quotes_BTCUSD_20250109
["timestamp","ask_amount","ask_price","bid_price","bid_amount"]
[1736452593543,0.09439653,92474.0,92455.0,0.216319]
[1736452593766,0.09439653,92474.0,92456.0,0.00108138]
[1736452593982,0.00066902,92459.0,92456.0,0.00108138]
[1736452594196,0.00066902,92459.0,92440.0,0.023]
[1736452594415,0.00066902,92459.0,92442.0,0.216349]
[1736452594628,0.00166902,92459.0,92442.0,0.216349]
[1736452594863,0.00166902,92459.0,92430.0,0.0751]
[1736452595071,0.00066902,92459.0,92415.0,0.1248]
[1736452595315,0.216316,92457.0,92420.0,0.20328922]
[1736452595521,0.216316,92457.0,92415.0,0.1248]
[1736452595522,0.15,92455.0,92436.0,0.216365]
[1736452595729,0.366323,92455.0,92437.0,0.00108161]
[1736452595944,0.366323,92455.0,92438.0,0.10429976]
[1736452596167,0.366323,92455.0,92439.0,0.03206628]
[1736452596390,0.0001702,92467.0,92441.0,0.15]
[1736452596655,0.0001702,92467.0,92440.0,0.22829976]
[1736452596656,0.00031977,92467.0,92449.0,0.10429976]
[1736452597067,0.00031977,92467.0,92450.0,0.00108138]
[1736452597272,0.00031977,92467.0,92451.0,0.10429976]
[1736452597521,0.001,92459.0,92451.0,0.10429976]
[1736452597981,0.216295,92466.0,92451.0,0.10429976]
[1736452598187,0.02166148,92466.0,92440.0,0.124]
[1736452598394,0.2163,92464.0,92441.0,0.10429976]
[1736452598596,0.216295,92466.0,92443.0,0.216349]
[1736452598820,0.00031977,92467.0,92444.0,0.10429976]
[1736452599125,0.006,92466.0,92444.0,0.10429976]
[1736452599343,0.023,92462.0,92408.0,0.0763]
[1736452599555,0.366384,92429.0,92411.0,0.10429976]
[1736452599762,0.03772137,92428.0,92405.0,0.19231041]
[1736452600197,0.03772137,92428.0,92390.0,0.50695435]
[1736452600198,0.15,92420.0,92394.0,0.19231041]
[1736452600432,0.15,92418.0,92394.0,0.19231041]
[1736452600641,0.15,92416.0,92400.0,0.216448]
[1736452600852,0.216378,92431.0,92410.0,0.10429976]
[1736452601057,0.00014943,92416.0,92411.0,0.216424]
[1736452601273,0.00014943,92416.0,92413.0,0.216419]
[1736452601484,0.00014943,92416.0,92415.0,0.1237]
[1736452601714,0.00014943,92416.0,92415.0,0.44441476]
[1736452602153,0.00014943,92416.0,92415.0,0.43541474]
[1736452602361,0.00014943,92416.0,92415.0,0.50174111]
[1736452602936,0.00014943,92416.0,92415.0,0.50474111]
[1736452604202,0.00014943,92416.0,92415.0,0.53374111]
[1736452604410,0.00014943,92416.0,92415.0,0.68374111]
[1736452604615,0.00014943,92416.0,92415.0,0.67674111]
[1736452604822,0.00014943,92416.0,92415.0,0.68574111]
[1736452606069,0.00014943,92416.0,92415.0,0.59641474]
[1736452606502,0.00014943,92416.0,92415.0,0.61941474]
[1736452606913,0.00014943,92416.0,92415.0,0.61041472]
[1736452607286,0.00014943,92416.0,92415.0,0.62243221]
[1736452607700,0.19368604,92459.0,92416.0,0.173]
[1736452607956,0.216314,92458.0,92437.0,0.216362]
[1736452608157,0.216331,92451.0,92438.0,0.10429976]
[1736452608699,0.216317,92457.0,92438.0,0.10429976]
[1736452608899,0.216317,92457.0,92439.0,0.216358]
[1736452609080,0.216317,92457.0,92440.0,0.10429976]
[1736452609322,0.216317,92457.0,92434.0,0.216369]
[1736452609323,0.00514937,92459.0,92456.0,0.10429976]
[1736452609523,0.19552895,92500.0,92458.0,0.25429976]
[1736452609728,0.26767699,92480.0,92443.0,0.045]
[1736452609937,0.216267,92478.0,92446.0,0.216342]
[1736452610148,0.216265,92479.0,92455.0,0.216319]
[1736452610357,0.216265,92479.0,92456.0,0.10538112]
[1736452610584,0.216267,92478.0,92457.0,0.211316]
[1736452610791,0.216267,92478.0,92458.0,0.10538112]
[1736452610996,0.432535,92478.0,92458.0,0.10429976]
[1736452611207,0.216252,92485.0,92448.0,0.216337]
[1736452611208,0.04433647,92477.0,92448.0,0.216337]
[1736452611422,0.002,92457.0,92449.0,0.10429976]
[1736452611636,0.216287,92470.0,92449.0,0.10429976]
[1736452611871,0.216287,92470.0,92450.0,0.216333]
[1736452612094,0.15108297,92469.0,92458.0,0.001]
[1736452612307,0.18509955,92469.0,92438.0,0.19231041]
[1736452612517,0.216311,92460.0,92449.0,0.001]
[1736452612722,0.216291,92468.0,92449.0,0.001]
[1736452612723,0.216304,92463.0,92449.0,0.001]
[1736452612927,0.216314,92458.0,92440.0,0.216356]
[1736452613128,0.216314,92458.0,92441.0,0.10429976]
[1736452613345,0.216314,92458.0,92442.0,0.0513465]
[1736452613553,0.002,92469.0,92447.0,0.10429976]
[1736452613758,0.002,92469.0,92448.0,0.10538115]
[1736452613964,0.002,92469.0,92456.0,0.432633]
[1736452614177,0.002,92469.0,92458.0,0.216314]
[1736452614399,0.002,92469.0,92459.0,0.10429976]
[1736452614608,0.216257,92483.0,92460.0,0.216309]
[1736452614836,0.002,92463.0,92461.0,0.10429976]
[1736452615039,0.216257,92483.0,92461.0,0.10429976]
[1736452615241,0.216267,92479.0,92462.0,0.05801881]
[1736452615441,0.002,92469.0,92463.0,0.10429976]
[1736452615706,0.216267,92479.0,92463.0,0.10429976]
[1736452616231,0.216267,92479.0,92463.0,0.10229976]
[1736452616929,0.216267,92479.0,92463.0,0.09329974]
[1736452616930,0.432534,92479.0,92463.0,0.09329974]
[1736452617138,0.216276,92475.0,92463.0,0.09329974]
[1736452618459,0.216267,92479.0,92463.0,0.09329974]
[1736452619355,0.1,92477.0,92449.0,0.19231041]
[1736452619595,0.216326,92453.0,92449.0,0.19231041]
[1736452619805,0.432652,92453.0,92449.0,0.19231041]
[1736452620220,0.216326,92453.0,92439.0,0.19231041]
[1736452620427,0.216326,92453.0,92440.0,0.10429976]
[1736452620631,0.21633,92451.0,92440.0,0.10429976]
[1736452620860,0.216301,92464.0,92441.0,0.00108166]
[1736452621066,0.216301,92464.0,92433.0,0.21637]
[1736452621067,0.216312,92459.0,92442.0,0.10538134]
[1736452621279,0.216312,92459.0,92449.0,0.004]
[1736452621692,0.216312,92459.0,92442.0,0.32064876]
[1736452621899,0.216301,92464.0,92442.0,0.36836175]
[1736452622132,0.216313,92459.0,92442.0,0.36836175]
[1736452622512,0.216313,92459.0,92443.0,0.0803]
[1736452622714,0.216313,92459.0,92444.0,0.10429976]
[1736452623788,0.216332,92451.0,92449.0,0.001]
[1736452624012,0.00108297,92450.0,92449.0,0.001]
[1736452624234,0.216354,92441.0,92438.0,0.00049882]
[1736452624444,0.20429976,92458.0,92438.0,0.00049882]
[1736452624445,0.15,92458.0,92444.0,0.001]
[1736452625059,0.216341,92447.0,92439.0,0.10429976]
[1736452625687,0.216307,92461.0,92440.0,0.00108168]
[1736452625925,0.216307,92461.0,92445.0,0.216342]
[1736452626140,0.005,92458.0,92446.0,0.10538132]
[1736452626351,0.005,92458.0,92446.0,0.10429976]
[1736452626576,0.005,92458.0,92447.0,0.21634]
[1736452626789,0.005,92458.0,92448.0,0.10538124]
[1736452626996,0.005,92458.0,92447.0,0.09638122]
[1736452627457,0.216316,92457.0,92447.0,0.09638122]
[1736452628299,0.432633,92457.0,92447.0,0.09638122]
[1736452628538,0.432633,92457.0,92442.0,0.0464]
[1736452628539,0.00135198,92456.0,92442.0,0.0464]
[1736452628759,0.216334,92450.0,92442.0,0.15069976]
[1736452629028,0.001,92457.0,92443.0,0.10429976]
[1736452629241,0.001,92457.0,92444.0,0.216347]
[1736452629479,0.001,92457.0,92445.0,0.10429976]
[1736452629962,0.001,92457.0,92438.0,0.00049882]
[1736452630195,0.216345,92445.0,92439.0,0.10429976]
[1736452630880,0.4975914,92445.0,92442.0,0.002]
[1736452631141,0.216354,92441.0,92438.0,0.00049882]
[1736452631356,0.216354,92441.0,92439.0,0.005]
[1736452631568,0.15135231,92440.0,92439.0,0.005]
[1736452631780,0.15135231,92440.0,92438.0,0.00049882]
[1736452631781,0.216358,92439.0,92438.0,0.00049882]
[1736452631987,0.216388,92427.0,92418.0,0.0689988]
[1736452632196,0.216361,92438.0,92418.0,0.0689988]
[1736452632417,0.216405,92419.0,92418.0,0.0689988]
[1736452632625,0.216405,92419.0,92404.0,0.19231041]
[1736452632833,0.216405,92419.0,92406.0,0.10429976]
[1736452633887,0.216405,92419.0,92406.0,0.32073576]
[1736452634057,0.216398,92423.0,92406.0,0.32073576]
[1736452634268,0.216378,92431.0,92415.0,0.216414]
[1736452634479,0.216368,92435.0,92417.0,0.21641]
[1736452634632,0.216368,92435.0,92407.0,0.05628311]
[1736452634633,0.21637,92435.0,92418.0,0.10429976]
[1736452634898,0.21685671,92439.0,92419.0,0.0752]
[1736452634899,0.216375,92433.0,92419.0,0.0752]
[1736452635098,0.216375,92433.0,92420.0,0.32070176]
[1736452636796,0.216389,92427.0,92419.0,0.0752]
[1736452636973,0.00049771,92439.0,92410.0,0.19231041]
[1736452636974,0.216416,92415.0,92410.0,0.19231041]
[1736452637148,0.1,92438.0,92410.0,0.19231041]
[1736452637356,0.216424,92411.0,92407.0,0.0804]
[1736452637557,0.216436,92406.0,92405.0,8.49e-05]
[1736452637761,0.216389,92426.0,92405.0,8.49e-05]
[1736452637762,0.216429,92409.0,92405.0,8.49e-05]
[1736452638583,0.216429,92409.0,92407.0,0.002]
[1736452638804,0.2380719,92409.0,92407.0,0.002]
[1736452639007,0.216433,92407.0,92405.0,0.00023427]
[1736452639434,0.216433,92407.0,92405.0,0.00323427]
[1736452639640,0.00135282,92406.0,92405.0,0.00323427]
[1736452640043,0.216433,92407.0,92405.0,0.00323427]
[1736452640461,0.00135282,92406.0,92405.0,0.00323427]
[1736452641486,0.00135282,92406.0,92405.0,0.00023427]
[1736452641689,0.00135282,92406.0,92387.0,0.03633425]
[1736452641893,0.216457,92397.0,92387.0,0.03648368]
[1736452642167,0.216453,92399.0,92387.0,0.03648368]
[1736452642305,0.216464,92394.0,92387.0,0.03648368]
[1736452642759,0.216453,92399.0,92387.0,0.03648368]
[1736452643164,0.216462,92395.0,92387.0,0.03648368]
[1736452643492,0.216453,92399.0,92387.0,0.03648368]
[1736452644603,0.216453,92399.0,92387.0,0.03748368]
[1736452644850,0.216417,92414.0,92389.0,0.216475]
[1736452645061,0.20285217,92420.0,92387.0,0.03648368]
[1736452645241,0.10565244,92413.0,92387.0,0.03648368]
[1736452645755,0.20285217,92397.0,92387.0,0.00014943]
[1736452645966,0.2,92392.0,92387.0,0.00014943]
[1736452646197,0.1,92388.0,92387.0,0.00014943]
[1736452646398,0.47754497,92388.0,92387.0,0.00014943]
[1736452646603,0.47907617,92388.0,92387.0,0.00014943]
[1736452646824,0.1,92385.0,92357.0,0.07071931]
[1736452647034,0.21654,92362.0,92357.0,0.07071931]
[1736452647244,0.00135352,92361.0,92352.0,8.5e-05]
[1736452647542,0.21656,92353.0,92352.0,0.00023449]
[1736452648733,0.21656,92353.0,92352.0,0.00123449]
[1736452650278,1.29051236,92353.0,92352.0,0.00323449]
[1736452650723,0.21656,92353.0,92352.0,0.00323449]
[1736452650927,0.36668,92302.0,92301.0,0.13533759]
[1736452651141,0.373,92296.0,92295.0,0.24054274]
[1736452651374,0.373,92287.0,92286.0,0.26090818]
[1736452651584,1.55125212,92287.0,92286.0,0.25795668]
[1736452651826,1.5635569,92287.0,92286.0,0.23120466]
[1736452652042,0.1,92281.0,92280.0,8.51e-05]
[1736452652254,0.3556548,92281.0,92280.0,8.51e-05]
[1736452652466,0.35429976,92281.0,92280.0,8.51e-05]
[1736452652681,0.25429976,92281.0,92280.0,0.0005838]
[1736452652889,0.35429976,92281.0,92280.0,0.0005838]
[1736452653524,0.25429976,92281.0,92280.0,0.0005838]
[1736452653733,0.25829976,92281.0,92280.0,0.0005838]
[1736452653961,0.32326506,92281.0,92280.0,0.0005838]
[1736452654167,0.31926506,92281.0,92280.0,0.0005838]
[1736452654386,0.25529976,92281.0,92280.0,0.0005838]
[1736452654803,0.15,92281.0,92280.0,0.0005838]
[1736452655012,0.002,92281.0,92280.0,0.0005838]
[1736452655229,0.652,92281.0,92280.0,0.0005838]
[1736452655438,0.5,92281.0,92280.0,0.0005838]
[1736452655622,0.501,92281.0,92280.0,0.0005838]
[1736452656249,0.506,92281.0,92280.0,0.0005838]
[1736452656889,0.501,92281.0,92273.0,0.11838378]
[1736452657148,0.503,92281.0,92273.0,0.11853322]
[1736452657334,0.501,92281.0,92274.0,0.53778976]
[1736452657595,0.5,92281.0,92274.0,0.60343057]
[1736452657777,0.5,92281.0,92274.0,0.53778976]
[1736452657988,0.501,92281.0,92274.0,0.53778976]
[1736452658213,0.503,92281.0,92274.0,0.53778976]
[1736452658413,0.502,92281.0,92276.0,0.433482]
[1736452658619,0.4239,92281.0,92280.0,0.10429976]
[1736452659388,0.23278923,92281.0,92280.0,0.47103076]
[1736452659857,0.23378923,92281.0,92280.0,0.47103076]
[1736452660036,0.23278923,92281.0,92280.0,0.47103076]
[1736452660247,0.23278923,92281.0,92280.0,0.57533052]
[1736452660460,0.23378923,92281.0,92280.0,0.58233052]
[1736452661507,0.23378923,92281.0,92280.0,0.58833052]
[1736452661723,0.22339185,92281.0,92280.0,0.71133052]
[1736452661925,0.0001702,92323.0,92294.0,0.15]
[1736452662136,0.0001702,92323.0,92296.0,0.15]
[1736452662350,0.0001702,92323.0,92310.0,0.21666]
[1736452662554,0.0001702,92323.0,92311.0,0.10429976]
[1736452662963,0.0001702,92323.0,92312.0,0.216656]
[1736452663178,0.216647,92316.0,92295.0,0.0173]
[1736452663383,0.216652,92314.0,92297.0,0.216691]
[1736452663595,0.0041702,92323.0,92299.0,0.216687]
[1736452663800,0.21664,92319.0,92301.0,0.216682]
[1736452664112,0.21664,92319.0,92301.0,0.32098176]
[1736452664326,0.21664,92319.0,92301.0,0.37474864]
[1736452664544,0.0001702,92323.0,92302.0,0.10429976]
[1736452664757,0.0011702,92323.0,92302.0,0.10429976]
[1736452664958,0.02976323,92325.0,92302.0,0.10429976]
[1736452665200,0.216619,92328.0,92302.0,0.10429976]
[1736452665406,0.216619,92328.0,92310.0,0.433321]
[1736452665610,0.216619,92328.0,92312.0,0.216656]
[1736452665815,0.21662,92328.0,92313.0,0.10429976]
[1736452666793,0.21662,92328.0,92313.0,0.09529974]
[1736452667453,0.21662,92328.0,92313.0,0.09729974]
[1736452668464,0.259943,92328.0,92313.0,0.09729974]
[1736452668669,0.259943,92328.0,92313.0,0.003]
[1736452668670,0.2783,92314.0,92313.0,0.003]
[1736452668867,1.45655212,92314.0,92313.0,0.003]
[1736452669295,0.2783,92314.0,92313.0,0.003]
[1736452669608,0.2783,92314.0,92313.0,0.002]
[1736452669811,0.216654,92313.0,92285.0,0.216719]
[1736452670011,0.216654,92313.0,92289.0,0.1259866]
[1736452670222,0.216679,92303.0,92289.0,0.10429976]
[1736452670637,0.216672,92306.0,92290.0,0.216708]
[1736452670861,0.216672,92306.0,92291.0,0.10429976]
[1736452671060,0.433313,92312.0,92292.0,0.433406]
[1736452671300,0.433313,92312.0,92294.0,0.216698]
[1736452671522,0.0496,92314.0,92293.0,0.10429976]
[1736452671696,0.216658,92311.0,92293.0,0.10429976]
[1736452671838,0.216674,92305.0,92292.0,0.216703]
[1736452672058,0.216674,92305.0,92292.0,0.32100276]
[1736452672929,0.216674,92305.0,92292.0,0.32300276]
[1736452674196,0.216674,92305.0,92292.0,0.32400276]
[1736452675187,0.35325937,92310.0,92292.0,0.003]
[1736452675394,0.15135426,92309.0,92292.0,0.003]
[1736452675596,0.216696,92296.0,92292.0,0.003]
[1736452675986,0.216696,92295.0,92292.0,0.003]
[1736452676390,0.216696,92295.0,92292.0,0.001]
[1736452676850,0.216696,92295.0,92279.0,0.20888042]
[1736452677076,0.216675,92304.0,92281.0,0.216729]
[1736452677284,0.216675,92304.0,92292.0,0.002]
[1736452677835,0.216661,92311.0,92292.0,0.10629976]
[1736452678040,0.433321,92311.0,92294.0,0.216698]
[1736452678287,0.216648,92316.0,92296.0,0.216694]
[1736452678623,0.216659,92311.0,92297.0,0.10429976]
[1736452679155,0.216661,92310.0,92297.0,0.10429976]
[1736452679767,0.002,92304.0,92297.0,0.10429976]
[1736452679964,0.216648,92316.0,92299.0,0.216687]
[1736452680173,0.216634,92322.0,92306.0,0.216669]
[1736452680401,0.216644,92318.0,92306.0,0.216669]
[1736452680897,0.216644,92318.0,92301.0,0.216682]
[1736452681079,0.216644,92318.0,92302.0,0.10429976]
[1736452681228,0.216644,92318.0,92303.0,0.433354]
[1736452681433,0.216644,92318.0,92305.0,0.216672]
[1736452681647,0.216644,92318.0,92306.0,0.10429976]
[1736452681857,0.216644,92318.0,92306.0,0.09529974]
[1736452682695,0.216644,92318.0,92306.0,0.09029974]
[1736452683051,0.216634,92322.0,92307.0,0.216668]
[1736452683252,0.00135402,92321.0,92306.0,0.001]
[1736452683464,0.216664,92309.0,92306.0,0.001]
[1736452683677,0.216653,92314.0,92306.0,0.001]
[1736452683872,0.216653,92314.0,92306.0,0.003]
[1736452684137,0.216653,92314.0,92306.0,0.002]
[1736452684332,0.216653,92314.0,92299.0,0.216686]
[1736452684525,0.216653,92314.0,92300.0,0.10429976]
[1736452684937,0.216662,92310.0,92289.0,0.224566]
[1736452685098,0.433324,92310.0,92296.0,0.216694]
[1736452685314,0.433324,92310.0,92297.0,0.10429976]
[1736452685539,0.5,92318.0,92297.0,0.10429976]
[1736452685896,0.216655,92313.0,92306.0,0.002]
[1736452686100,0.10429976,92313.0,92306.0,0.002]
[1736452686302,0.216682,92301.0,92271.0,0.01228]
[1736452686503,0.433366,92301.0,92297.0,0.001]
[1736452686855,0.0832,92308.0,92278.0,0.21688461]
[1736452687058,0.216696,92295.0,92280.0,0.216731]
[1736452687263,0.216696,92295.0,92281.0,0.10429976]
[1736452687463,0.2383656,92295.0,92294.0,0.001]
[1736452687672,0.216696,92295.0,92294.0,0.001]
[1736452687873,0.216696,92295.0,92278.0,0.21688461]
[1736452688147,0.00135439,92294.0,92278.0,0.00014961]
[1736452688309,0.216728,92282.0,92280.0,0.001]
[1736452688508,0.00135472,92281.0,92280.0,0.001]
[1736452688781,0.00135472,92281.0,92278.0,0.00014961]
[1736452688782,0.216731,92280.0,92278.0,0.00014961]
[1736452689036,0.00135475,92279.0,92278.0,0.00014961]
[1736452689206,0.00135475,92279.0,92278.0,0.00114961]
[1736452690381,0.00235475,92279.0,92278.0,0.00114961]
[1736452690592,0.00235475,92279.0,92278.0,0.00014961]
[1736452691850,0.216736,92278.0,92260.0,0.20809779]
[1736452692056,0.00114909,92279.0,92261.0,0.10429976]
[1736452692267,0.216737,92278.0,92262.0,0.216773]
[1736452692466,0.00114909,92279.0,92260.0,0.216777]
[1736452692697,0.00114909,92279.0,92260.0,0.32107676]
[1736452692900,0.216741,92276.0,92260.0,0.32107676]
[1736452693219,0.216738,92277.0,92260.0,0.32107676]
[1736452693220,0.216749,92273.0,92261.0,0.216776]
[1736452693834,0.216738,92277.0,92261.0,0.216776]
[1736452694395,0.433477,92277.0,92261.0,0.216776]
[1736452694942,0.216738,92277.0,92261.0,0.216776]
[1736452695329,0.00014909,92279.0,92276.0,0.43348]
[1736452695566,0.00014909,92279.0,92277.0,0.10429976]
[1736452695772,0.00014909,92279.0,92278.0,0.216736]
[1736452695974,0.00014909,92279.0,92278.0,0.32103576]
[1736452696188,0.00014909,92279.0,92261.0,0.001]
[1736452696189,0.00014909,92279.0,92265.0,0.216766]
[1736452696361,0.00014909,92279.0,92266.0,0.10429976]
[1736452696610,0.00014909,92279.0,92271.0,0.21675]
[1736452696808,0.00014909,92279.0,92272.0,0.31204974]
[1736452697012,0.00014909,92279.0,92272.0,0.10429976]
[1736452697218,0.00014909,92279.0,92276.0,0.21674]
[1736452697420,0.00014909,92279.0,92278.0,0.216736]
[1736452697624,0.00014909,92279.0,92278.0,0.32103576]
[1736452699670,0.00114909,92279.0,92278.0,0.32103576]
[1736452700389,0.00114909,92279.0,92272.0,0.007]
[1736452700800,0.00114909,92279.0,92278.0,0.005]
[1736452701011,0.00014909,92279.0,92278.0,0.005]
[1736452701217,0.0228365,92279.0,92278.0,0.014]
[1736452701421,0.2395705,92279.0,92278.0,0.009]
[1736452701625,0.21688309,92279.0,92272.0,0.003]
[1736452701753,0.21688309,92279.0,92263.0,0.21076998]
[1736452701965,0.21688309,92279.0,92264.0,0.10429976]
[1736452702347,0.00014909,92279.0,92264.0,0.10429976]
[1736452702557,0.00014909,92279.0,92264.0,0.13244083]
[1736452702756,0.00014909,92279.0,92277.0,0.216736]
[1736452702935,0.00014909,92279.0,92278.0,0.10429976]
[1736452703140,0.00114909,92279.0,92278.0,0.10429976]
[1736452703731,0.00014909,92279.0,92278.0,0.10429976]
[1736452703928,0.00014909,92279.0,92278.0,0.001]
[1736452703929,0.00114909,92279.0,92278.0,0.001]
[1736452704332,3.951e-05,92279.0,92278.0,0.001]
[1736452704541,0.00103951,92279.0,92278.0,0.007]
[1736452704742,0.00103951,92279.0,92268.0,0.216759]
[1736452704954,0.00103951,92279.0,92269.0,0.10429976]
[1736452705152,0.00103951,92279.0,92278.0,0.216736]
[1736452705425,0.00103951,92279.0,92278.0,0.32103576]
[1736452705857,0.00103951,92279.0,92278.0,0.47103576]
[1736452705979,3.951e-05,92279.0,92278.0,0.47103576]
[1736452706390,0.00103951,92279.0,92278.0,0.47103576]
[1736452706586,3.951e-05,92279.0,92278.0,0.47103576]
[1736452706818,3.951e-05,92279.0,92278.0,0.58302344]
[1736452707018,5.1e-07,92279.0,92278.0,0.69494728]
[1736452707181,5.1e-07,92279.0,92278.0,0.59494728]
[1736452707386,5.1e-07,92279.0,92278.0,0.79494728]
[1736452707587,5.1e-07,92279.0,92278.0,0.69694728]
[1736452707794,0.0001704,92316.0,92304.0,0.216673]
[1736452708002,0.00032004,92316.0,92305.0,0.10429976]
[1736452708409,0.20157846,92318.0,92305.0,0.10429976]
[1736452708643,0.20157846,92318.0,92305.0,0.1044494]
[1736452708816,0.00135402,92317.0,92305.0,0.00014964]
[1736452709042,0.216669,92307.0,92305.0,0.00014964]
[1736452710023,0.00135427,92306.0,92305.0,0.00114964]
[1736452710362,0.00135427,92306.0,92305.0,0.00014964]
[1736452710854,0.22675403,92306.0,92305.0,0.00014964]
[1736452711075,0.22539976,92306.0,92305.0,0.00014964]
[1736452711299,0.22939976,92306.0,92305.0,0.00014964]
[1736452711762,0.23039976,92306.0,92305.0,0.00014964]
[1736452712013,0.650016,92305.0,92277.0,0.20788762]
[1736452712253,0.216706,92291.0,92277.0,0.31218738]
[1736452712454,0.20325937,92300.0,92269.0,0.216757]
[1736452712694,0.00135454,92299.0,92270.0,0.10429976]
[1736452712915,0.216709,92290.0,92272.0,0.21675]
[1736452713154,0.216717,92286.0,92272.0,0.32104976]
[1736452713608,0.216709,92290.0,92277.0,0.003]
[1736452713828,0.216709,92290.0,92277.0,0.10429976]
[1736452714595,0.001,92286.0,92277.0,0.10429976]
[1736452714816,0.001,92286.0,92277.0,0.10629976]
[1736452715043,0.216709,92290.0,92277.0,0.10629976]
[1736452715417,0.216699,92294.0,92277.0,0.10429976]
[1736452715617,0.216701,92293.0,92278.0,0.216736]
[1736452715842,0.10053559,92304.0,92279.0,0.10429976]
[1736452716044,0.15,92288.0,92269.0,0.00014909]
[1736452716270,0.21675,92272.0,92269.0,0.00014909]
[1736452716688,0.216755,92270.0,92269.0,0.00014909]
[1736452716895,0.216757,92269.0,92253.0,0.20819737]
[1736452717146,0.216771,92263.0,92254.0,0.10429976]
[1736452717366,0.02772052,92268.0,92243.0,8.51e-05]
[1736452717367,0.216792,92255.0,92243.0,8.51e-05]
[1736452717587,0.216792,92255.0,92244.0,0.10429976]
[1736452717812,0.00014945,92270.0,92254.0,0.216791]
[1736452718031,0.00014945,92270.0,92255.0,0.32108976]
[1736452718241,0.00014945,92270.0,92269.0,0.001]
[1736452719128,0.00014945,92270.0,92269.0,0.217757]
[1736452719346,0.00014945,92270.0,92269.0,0.32205676]
[1736452719959,0.00014945,92270.0,92269.0,0.32105676]
[1736452720796,0.00014945,92270.0,92269.0,0.32205676]
[1736452720998,0.00014945,92270.0,92269.0,0.32405676]
[1736452721206,0.00014945,92270.0,92269.0,0.32205676]
[1736452721429,0.00014945,92270.0,92269.0,0.32105676]
[1736452721632,0.00014945,92270.0,92269.0,0.32805676]
[1736452721852,0.00014945,92270.0,92269.0,0.32405676]
[1736452722922,0.00014945,92270.0,92269.0,0.10429976]
[1736452723109,0.00014945,92270.0,92269.0,0.10729976]
[1736452723312,0.00114945,92270.0,92269.0,0.11429976]
[1736452723518,0.00114945,92270.0,92269.0,0.33105676]
[1736452723724,0.00014945,92270.0,92269.0,0.32105676]
[1736452723929,0.00014945,92270.0,92269.0,0.10829976]
[1736452724151,0.00114945,92270.0,92269.0,0.11729976]
[1736452724350,0.00114945,92270.0,92269.0,0.33405676]
[1736452725972,0.216719,92286.0,92269.0,0.33405676]
[1736452726224,0.216719,92285.0,92269.0,0.33405676]
[1736452726431,1.12245236,92309.0,92271.0,0.216752]
[1736452726639,0.21669,92298.0,92279.0,0.216734]
[1736452726889,0.00135448,92297.0,92286.0,0.20771598]
[1736452727113,0.216672,92305.0,92286.0,0.20771598]
[1736452727315,0.216683,92301.0,92286.0,0.20771598]
[1736452727525,0.216672,92305.0,92286.0,0.20771598]
[1736452727933,0.003,92298.0,92286.0,0.23891755]
[1736452728135,0.216672,92305.0,92286.0,0.23891755]
[1736452728136,0.001,92297.0,92286.0,0.23891755]
[1736452728336,0.001,92297.0,92291.0,0.216705]
[1736452728743,0.0208206,92297.0,92291.0,0.216705]
[1736452729534,0.0198206,92297.0,92291.0,0.216705]
[1736452729994,0.0198206,92297.0,92287.0,0.32101476]
[1736452730235,0.00135438,92296.0,92277.0,0.216738]
[1736452730448,0.002,92297.0,92281.0,0.216727]
[1736452730661,0.001,92297.0,92281.0,0.216727]
[1736452730862,0.001,92297.0,92291.0,0.001]
[1736452731071,0.216694,92296.0,92291.0,0.001]
[1736452731279,0.216694,92296.0,92279.0,0.216734]
[1736452731480,0.216704,92292.0,92279.0,0.10429976]
[1736452731893,0.216704,92292.0,92090.0,0.00011807]
[1736452731894,0.0757,92290.0,92264.0,0.216768]
[1736452732109,0.21673,92281.0,92277.0,0.001]
[1736452732326,0.43346,92281.0,92277.0,0.001]
[1736452732540,0.48126,92281.0,92277.0,0.001]
[1736452732765,0.06930404,92280.0,92277.0,0.001]
[1736452732989,0.216734,92279.0,92277.0,0.001]
[1736452733204,0.00135477,92278.0,92277.0,0.001]
[1736452733393,0.216752,92272.0,92256.0,0.216787]
[1736452733613,0.216752,92272.0,92256.0,0.32108676]
[1736452734191,0.01982336,92271.0,92256.0,0.32123621]
[1736452735184,0.04533134,92270.0,92256.0,0.32123621]
[1736452735630,0.216778,92261.0,92256.0,0.00014945]
[1736452735836,0.00135495,92260.0,92256.0,0.00014945]
[1736452736060,0.53786176,92259.0,92256.0,0.00014945]
[1736452736324,0.53786176,92259.0,92231.0,0.16330244]
[1736452736325,0.366816,92244.0,92231.0,0.16330244]
[1736452736533,0.216839,92234.0,92231.0,0.13629018]
[1736452736743,0.15,92220.0,92219.0,0.27936339]
[1736452736947,0.25,92219.0,92212.0,0.27936339]
[1736452737179,0.216882,92216.0,92213.0,0.00058368]
[1736452737569,0.216886,92214.0,92213.0,0.00058368]
[1736452737778,0.366886,92214.0,92213.0,0.00058368]
[1736452737986,0.00481139,92216.0,92213.0,0.00058368]
[1736452738198,0.00135578,92215.0,92213.0,0.00058368]
[1736452738413,0.05140152,92214.0,92213.0,0.00058368]
[1736452738837,0.05340152,92214.0,92213.0,0.00058368]
[1736452739466,0.29711764,92254.0,92213.0,0.00058368]
[1736452739681,0.19819274,92251.0,92230.0,0.20325937]
[1736452739885,0.03157816,92254.0,92241.0,0.216823]
[1736452740091,0.03157816,92254.0,92240.0,0.20325937]
[1736452740293,0.03157816,92254.0,92251.0,0.216797]
[1736452740703,0.03157816,92254.0,92253.0,0.216795]
[1736452740907,0.00810606,92254.0,92253.0,0.49609476]
[1736452741114,0.216679,92303.0,92274.0,0.216744]
[1736452741318,0.00135464,92297.0,92274.0,0.426488]
[1736452741520,0.00014967,92298.0,92275.0,0.10429976]
[1736452741732,0.00014967,92298.0,92275.0,0.09529974]
[1736452742156,0.216692,92297.0,92275.0,0.09529974]
[1736452742382,0.15,92288.0,92275.0,0.09529974]
[1736452742582,0.15,92288.0,92240.0,0.27825937]
[1736452742583,0.15,92282.0,92250.0,0.216802]
[1736452742791,0.25135454,92282.0,92255.0,0.10429976]
[1736452742998,0.20325937,92260.0,92255.0,0.10429976]
[1736452743202,0.15,92259.0,92236.0,0.216835]
[1736452743414,0.15,92259.0,92234.0,0.264139]